fUSD/lending_fUSD_20260416
["ID","MTS","AMOUNT","RATE_DAILY","PERIOD"]
[420595926,1776294633932,-693.3919763,9.39e-05,2]
[420595927,1776294633941,-267.46074304,9.39e-05,2]
[420595928,1776294633950,-9905.5980765,9.445e-05,2]
[420595929,1776294633959,-500.0,9.445e-05,2]
[420595930,1776294633968,-151.0,9.445e-05,2]
[420595931,1776294633978,-2500.0,9.49e-05,2]
[420595932,1776294633987,-6830.29115,9.493e-05,2]
[420595933,1776294633997,-4486.51729486,9.5e-05,2]
[420595934,1776294634007,-500.0,9.5e-05,2]
[420595935,1776294634016,-151.0,9.5e-05,2]
[420595936,1776294634027,-721.12765535,9.554e-05,2]
[420595937,1776294634036,-200.0,9.554e-05,2]
[420595938,1776294634046,-743.50770149,9.554e-05,2]
[420595939,1776294634055,-1428.38747117,9.554e-05,2]
[420595940,1776294634064,-500.0,9.554e-05,2]
[420595941,1776294634074,-500.0,9.554e-05,2]
[420595942,1776294634083,-500.0,9.554e-05,2]
[420595943,1776294634092,-500.0,9.554e-05,2]
[420595944,1776294634102,-500.0,9.554e-05,2]
[420595945,1776294634111,-500.0,9.554e-05,2]
[420595946,1776294634120,-500.0,9.554e-05,2]
[420595947,1776294634129,-500.0,9.554e-05,2]
[420595948,1776294634139,-500.0,9.554e-05,2]
[420595949,1776294634148,-500.0,9.554e-05,2]
[420595950,1776294634157,-500.0,9.554e-05,2]
[420595951,1776294634166,-209.40437684,9.554e-05,2]
[420595952,1776294634175,-279.9045709,9.554e-05,2]
[420595953,1776294634185,-500.0,9.555e-05,2]
[420595954,1776294634194,-151.0,9.555e-05,2]
[420595955,1776294634204,-1680.0,9.557e-05,2]
[420595956,1776294634213,-193.0,9.558e-05,2]
[420595957,1776294634222,-5000.0,9.558e-05,2]
[420595958,1776294634231,-250.0,9.558e-05,2]
[420595959,1776294634240,-420.0,9.558e-05,2]
[420595960,1776294634249,-804.205199,9.56e-05,2]
[420595961,1776294634259,-804.205199,9.56e-05,2]
[420595962,1776294634268,-804.205199,9.56e-05,2]
[420595963,1776294634278,-804.205199,9.56e-05,2]
[420595964,1776294634287,-160.04375009,9.573e-05,2]
[420595965,1776294634296,-160.0453474,9.573e-05,2]
[420595966,1776294634305,-500.0,9.573e-05,2]
[420595967,1776294634314,-500.0,9.573e-05,2]
[420595968,1776294634323,-501.51019132,9.573e-05,2]
[420595969,1776294634333,-191.20850739,9.589e-05,2]
[420595970,1776294634343,-500.0,9.589e-05,2]
[420595971,1776294634352,-632.249868,9.589e-05,2]
[420595972,1776294634361,-500.0,9.589e-05,2]
[420595973,1776294634370,-500.0,9.589e-05,2]
[420595974,1776294634379,-500.0,9.589e-05,2]
[420595975,1776294634389,-500.0,9.589e-05,2]
[420595976,1776294634398,-500.0,9.589e-05,2]
[420595977,1776294634407,-500.0,9.589e-05,2]
[420595978,1776294634416,-311.58164194,9.589e-05,2]
[420595979,1776294634425,-500.0,9.589e-05,2]
[420595980,1776294634434,-500.0,9.589e-05,2]
[420595981,1776294634443,-647.28234747,9.589e-05,2]
[420595982,1776294634452,-175.71825717,9.589e-05,2]
[420595983,1776294634462,-211.04478537,9.589e-05,2]
[420595984,1776294634471,-151.0,9.59e-05,2]
[420595985,1776294634480,-804.205199,9.59e-05,2]
[420595986,1776294634490,-804.205199,9.59e-05,2]
[420595987,1776294634499,-804.205199,9.59e-05,2]
[420595988,1776294634508,-804.205199,9.59e-05,2]
[420595989,1776294634517,-1042.942013,9.59e-05,2]
[420595990,1776294634526,-1042.942013,9.59e-05,2]
[420595991,1776294634535,-1042.942013,9.59e-05,2]
[420595992,1776294634544,-1042.942013,9.59e-05,2]
[420595993,1776294634554,-1000.0,9.59e-05,2]
[420595994,1776294634563,-33057.3911,9.59e-05,2]
[420595995,1776294634573,-500.0,9.61e-05,2]
[420595996,1776294634582,-151.0,9.61e-05,2]
[420595997,1776294634591,-500.0,9.665e-05,2]
[420595998,1776294634600,-151.0,9.665e-05,2]
[420595999,1776294634610,-151.0,9.687e-05,2]
[420596000,1776294634619,-40322.59317182,9.69e-05,2]
[420596001,1776294634671,-428.3869834,9.69e-05,2]
[420596002,1776294634682,-693.6130166,9.69e-05,2]
[420596003,1776294634693,-7321.88054138,9.69e-05,2]
[420596013,1776294639756,-736.12857669,9.69e-05,2]
[420596014,1776294639768,-559.53366536,9.69e-05,2]
[420596015,1776294639779,-1058.9566945,9.69e-05,2]
[420596016,1776294639791,-1053.96018,9.69e-05,2]
[420596017,1776294639802,-297.28257251,9.69e-05,2]
[420596018,1776294639821,-800.71742749,9.69e-05,2]
[420596019,1776294639832,-6657.42045116,9.69e-05,2]
[420596020,1776294639847,-1980.58075856,9.69e-05,2]
[420596021,1776294639873,-879.54028418,9.69e-05,2]
[420596022,1776294639884,-591.50731879,9.69e-05,2]
[420596023,1776294639895,-44554.89520937,9.69e-05,2]
[420596024,1776294639906,-9399.4086997,9.69e-05,2]
[420596045,1776294643244,-11254.23974103,9.69e-05,2]
[420596047,1776294643256,-1109.5857,9.69e-05,2]
[420596050,1776294643291,-1328.9425,9.69e-05,2]
[420596055,1776294643376,-2207.26,9.69e-05,2]
[420596057,1776294643388,-255.7608641,9.69e-05,2]
[420596058,1776294643399,-2414.10485394,9.69e-05,2]
[420596065,1776294643615,-1751.70942853,9.69e-05,2]
[420596066,1776294643851,-570.0,9.69e-05,2]
[420596069,1776294647271,-531.038074,9.689e-05,2]
[420596070,1776294647280,-500.0,9.689e-05,2]
[420596071,1776294647290,-500.0,9.689e-05,2]
[420596072,1776294647300,-196.47372456,9.689e-05,2]
[420596073,1776294647309,-348.75500697,9.689e-05,2]
[420596074,1776294647319,-359.47218987,9.689e-05,2]
[420596075,1776294647328,-42597.3272628,9.69e-05,2]
[420596076,1776294647465,-332865.71863845,9.69e-05,2]
[420596077,1776294647594,-528.85154338,9.69e-05,2]
[420596078,1776294647606,-3050.37320379,9.69e-05,2]
[420596079,1776294647616,-151.0,9.69e-05,2]
[420596080,1776294647625,-151.0,9.69e-05,2]
[420596081,1776294647635,-151.0,9.69e-05,2]
[420596082,1776294647644,-804.205199,9.69e-05,2]
[420596083,1776294647653,-804.205199,9.69e-05,2]
[420596084,1776294647662,-804.205199,9.69e-05,2]
[420596085,1776294647672,-804.205199,9.69e-05,2]
[420596086,1776294647681,-128.80605021,9.69e-05,2]
[420596087,1776294647692,-371.19394979,9.69e-05,2]
[420596088,1776294647702,-47.12328935,9.69e-05,2]
[420596089,1776294647713,-515.32199994,9.69e-05,2]
[420596090,1776294647724,-469.78000001,9.69e-05,2]
[420596252,1776295216209,-2308.87133791,8.621e-05,2]
[420596253,1776295223520,247.18,8.43e-05,2]
[420596258,1776295361831,159.16,8.428e-05,2]
[420596260,1776295381205,300.0,0.000165,30]
[420596264,1776295778792,2000.0,8.274e-05,2]
[420596265,1776295823246,2480.2,8.22e-05,2]
[420596273,1776295831623,-262.0,8.626e-05,2]
[420596274,1776295831633,-250.0,8.626e-05,2]
[420596275,1776295831643,-65.69225892,8.626e-05,2]
[420596276,1776295831680,-1534.30774108,8.626e-05,2]
[420596277,1776295831690,-4838.43,8.695e-05,2]
[420596278,1776295831699,-1200.0,8.799e-05,2]
[420596279,1776295831709,-2800.0,8.8e-05,3]
[420596280,1776295831719,-300.0,8.897e-05,2]
[420596281,1776295831734,-300.0,8.897e-05,2]
[420596282,1776295831744,-1200.0,8.898e-05,2]
[420596283,1776295831755,-5600.0,8.9e-05,3]
[420596284,1776295831765,-8400.0,9e-05,3]
[420596285,1776295831775,-3246.7864,9.005e-05,2]
[420596286,1776295831786,-150.0,9.026e-05,2]
[420596287,1776295831796,-161.91790153,9.027e-05,2]
[420596288,1776295831806,-153.68639938,9.027e-05,2]
[420596289,1776295831816,-150.0,9.027e-05,2]
[420596290,1776295831826,-500.0,9.027e-05,2]
[420596291,1776295831837,-500.0,9.027e-05,2]
[420596292,1776295831847,-500.0,9.027e-05,2]
[420596293,1776295831857,-500.0,9.027e-05,2]
[420596294,1776295831867,-500.0,9.027e-05,2]
[420596295,1776295831877,-500.0,9.027e-05,2]
[420596296,1776295831887,-500.0,9.027e-05,2]
[420596297,1776295831897,-500.0,9.027e-05,2]
[420596298,1776295831908,-500.0,9.027e-05,2]
[420596299,1776295831918,-500.0,9.027e-05,2]
[420596300,1776295831928,-500.0,9.027e-05,2]
[420596301,1776295831939,-500.0,9.027e-05,2]
[420596302,1776295831948,-500.0,9.027e-05,2]
[420596303,1776295831958,-500.0,9.027e-05,2]
[420596304,1776295831969,-218.56713053,9.027e-05,2]
[420596305,1776295831978,-500.0,9.027e-05,2]
[420596306,1776295831988,-500.0,9.027e-05,2]
[420596307,1776295831999,-500.0,9.027e-05,2]
[420596308,1776295832009,-500.0,9.027e-05,2]
[420596309,1776295832020,-151.20621073,9.027e-05,2]
[420596311,1776295832030,-150.0,9.027e-05,2]
[420596312,1776295832040,-150.0,9.081e-05,2]
[420596313,1776295832050,-150.0,9.081e-05,2]
[420596314,1776295832060,-150.0,9.081e-05,2]
[420596315,1776295832071,-200.0,9.081e-05,2]
[420596316,1776295832081,-500.0,9.081e-05,2]
[420596317,1776295832091,-500.0,9.081e-05,2]
[420596318,1776295832102,-588.06168633,9.081e-05,2]
[420596319,1776295832112,-150.0,9.081e-05,2]
[420596320,1776295832123,-478.0,9.081e-05,2]
[420596321,1776295832138,-478.0,9.081e-05,2]
[420596322,1776295832148,-150.0,9.081e-05,2]
[420596323,1776295832158,-478.0,9.081e-05,2]
[420596324,1776295832170,-478.0,9.081e-05,2]
[420596325,1776295832180,-478.0,9.081e-05,2]
[420596326,1776295832191,-478.0,9.081e-05,2]
[420596327,1776295832201,-478.0,9.081e-05,2]
[420596329,1776295832211,-478.0,9.081e-05,2]
[420596330,1776295832222,-150.0,9.081e-05,2]
[420596331,1776295832232,-478.0,9.081e-05,2]
[420596332,1776295832243,-478.0,9.081e-05,2]
[420596333,1776295832253,-478.0,9.081e-05,2]
[420596334,1776295832264,-478.0,9.081e-05,2]
[420596335,1776295832274,-539.0,9.081e-05,2]
[420596336,1776295832285,-478.0,9.081e-05,2]
[420596337,1776295832295,-539.0,9.081e-05,2]
[420596338,1776295832305,-478.0,9.081e-05,2]
[420596339,1776295832315,-539.0,9.081e-05,2]
[420596340,1776295832326,-478.0,9.081e-05,2]
[420596341,1776295832336,-539.0,9.081e-05,2]
[420596342,1776295832345,-478.0,9.081e-05,2]
[420596343,1776295832355,-539.0,9.081e-05,2]
[420596344,1776295832365,-539.0,9.081e-05,2]
[420596345,1776295832375,-539.0,9.081e-05,2]
[420596346,1776295832385,-478.0,9.081e-05,2]
[420596347,1776295832395,-539.0,9.081e-05,2]
[420596348,1776295832405,-539.0,9.081e-05,2]
[420596349,1776295832415,-539.0,9.081e-05,2]
[420596350,1776295832425,-539.0,9.081e-05,2]
[420596351,1776295832435,-478.0,9.081e-05,2]
[420596352,1776295832445,-539.0,9.081e-05,2]
[420596353,1776295833292,-539.0,9.081e-05,2]
[420596354,1776295833304,-539.0,9.081e-05,2]
[420596355,1776295833314,-539.0,9.081e-05,2]
[420596356,1776295833324,-539.0,9.081e-05,2]
[420596357,1776295833334,-478.0,9.081e-05,2]
[420596358,1776295833344,-539.0,9.081e-05,2]
[420596359,1776295833354,-539.0,9.081e-05,2]
[420596360,1776295833363,-478.0,9.081e-05,2]
[420596361,1776295833374,-539.0,9.081e-05,2]
[420596362,1776295833385,-478.0,9.081e-05,2]
[420596363,1776295833395,-150.0,9.081e-05,2]
[420596364,1776295833405,-150.0,9.081e-05,2]
[420596365,1776295833415,-200.0,9.081e-05,2]
[420596366,1776295833426,-539.0,9.081e-05,2]
[420596367,1776295833436,-478.0,9.081e-05,2]
[420596368,1776295833446,-500.0,9.081e-05,2]
[420596369,1776295833457,-539.0,9.081e-05,2]
[420596370,1776295833466,-500.0,9.081e-05,2]
[420596371,1776295833477,-500.0,9.081e-05,2]
[420596372,1776295833487,-500.0,9.081e-05,2]
[420596373,1776295833497,-500.0,9.081e-05,2]
[420596374,1776295833507,-500.0,9.081e-05,2]
[420596375,1776295833518,-500.0,9.081e-05,2]
[420596376,1776295833527,-500.0,9.081e-05,2]
[420596377,1776295833537,-500.0,9.081e-05,2]
[420596378,1776295833547,-500.0,9.081e-05,2]
[420596379,1776295833556,-500.0,9.081e-05,2]
[420596380,1776295833566,-500.0,9.081e-05,2]
[420596381,1776295833576,-500.0,9.081e-05,2]
[420596382,1776295833586,-349.45504221,9.081e-05,2]
[420596383,1776295833595,-157.56778654,9.081e-05,2]
[420596384,1776295833605,-478.0,9.081e-05,2]
[420596385,1776295833615,-539.0,9.081e-05,2]
[420596386,1776295833624,-150.0,9.081e-05,2]
[420596387,1776295833634,-150.0,9.081e-05,2]
[420596388,1776295833644,-200.0,9.081e-05,2]
[420596389,1776295833654,-150.0,9.081e-05,2]
[420596390,1776295833664,-539.0,9.081e-05,2]
[420596391,1776295833673,-490.0,9.081e-05,2]
[420596392,1776295833683,-500.0,9.081e-05,2]
[420596393,1776295833693,-500.0,9.081e-05,2]
[420596394,1776295833703,-500.0,9.081e-05,2]
[420596395,1776295833713,-500.0,9.081e-05,2]
[420596396,1776295833723,-500.0,9.081e-05,2]
[420596397,1776295833738,-150.0,9.081e-05,2]
[420596398,1776295833748,-500.0,9.081e-05,2]
[420596399,1776295833759,-150.0,9.081e-05,2]
[420596400,1776295833770,-200.0,9.081e-05,2]
[420596401,1776295833780,-500.0,9.081e-05,2]
[420596402,1776295833790,-500.0,9.081e-05,2]
[420596403,1776295833800,-500.0,9.081e-05,2]
[420596404,1776295833811,-294.27151014,9.081e-05,2]
[420596405,1776295833821,-560.0,9.081e-05,2]
[420596406,1776295833831,-1928.0,9.085e-05,2]
[420596407,1776295833841,-151.0,9.102e-05,2]
[420596408,1776295833851,-151.0,9.102e-05,2]
[420596409,1776295833861,-207.5471926,9.102e-05,2]
[420596410,1776295833871,-151.0,9.102e-05,2]
[420596411,1776295833882,-2548.936,9.104e-05,2]
[420596412,1776295833892,-238.437,9.104e-05,2]
[420596413,1776295833903,-261.39130347,9.104e-05,2]
[420596414,1776295833913,-500.0,9.104e-05,2]
[420596415,1776295833923,-536.04395313,9.104e-05,2]
[420596416,1776295833934,-206.01838863,9.104e-05,2]
[420596417,1776295833944,-500.0,9.104e-05,2]
[420596418,1776295833954,-500.0,9.104e-05,2]
[420596419,1776295833964,-290.08987079,9.104e-05,2]
[420596420,1776295833975,-500.0,9.104e-05,2]
[420596421,1776295833985,-500.0,9.104e-05,2]
[420596422,1776295833995,-195.24250796,9.104e-05,2]
[420596423,1776295834006,-444.59896374,9.104e-05,2]
[420596424,1776295834016,-500.0,9.104e-05,2]
[420596425,1776295834026,-500.0,9.104e-05,2]
[420596426,1776295834037,-500.0,9.104e-05,2]
[420596427,1776295834047,-500.0,9.105e-05,2]
[420596428,1776295834057,-210.60663321,9.163e-05,2]
[420596429,1776295834067,-500.0,9.163e-05,2]
[420596430,1776295834077,-500.0,9.163e-05,2]
[420596431,1776295834087,-500.0,9.163e-05,2]
[420596432,1776295834098,-316.21010929,9.163e-05,2]
[420596433,1776295834108,-640.74081011,9.163e-05,2]
[420596434,1776295834118,-500.68633184,9.163e-05,2]
[420596435,1776295834128,-500.0,9.163e-05,2]
[420596436,1776295834139,-500.33773048,9.163e-05,2]
[420596437,1776295834149,-500.0,9.163e-05,2]
[420596438,1776295834159,-500.23646401,9.163e-05,2]
[420596439,1776295834169,-151.0,9.183e-05,2]
[420596440,1776295834179,-114321.27959693,9.186e-05,2]
[420596441,1776295837019,-5669.63628901,9.186e-05,2]
[420596442,1776295837062,-9691.3822606,9.186e-05,2]
[420596443,1776295837087,-931.70372915,9.186e-05,2]
[420596444,1776295837118,-10534.31893508,9.186e-05,2]
[420596445,1776295837209,-5211.49292933,9.186e-05,2]
[420596468,1776295840022,-500.0,9.104e-05,2]
[420596469,1776295840032,-270.45357976,9.186e-05,2]
[420596470,1776295840044,-733.3777153,9.186e-05,2]
[420596494,1776295840276,-922.74431981,9.186e-05,2]
[420596518,1776295840496,-713267.83174503,9.186e-05,2]
[420596520,1776295840505,-476.0,9.249e-05,2]
[420596522,1776295840514,-159.16,9.271e-05,2]
[420596524,1776295840524,-2000.0,9.309e-05,2]
[420596526,1776295840534,-267.0,9.316e-05,2]
[420596528,1776295840543,-578.20924308,9.355e-05,2]
[420596530,1776295840553,-721.12765535,9.355e-05,2]
[420596532,1776295840562,-200.0,9.355e-05,2]
[420596533,1776295840572,-1428.38747117,9.355e-05,2]
[420596535,1776295840581,-500.0,9.355e-05,2]
[420596537,1776295840590,-209.40437684,9.355e-05,2]
[420596538,1776295840600,-9552.16786547,9.355e-05,2]
[420596539,1776295840609,-151.0,9.355e-05,2]
[420596541,1776295840620,-200.0,9.355e-05,2]
[420596542,1776295840630,-151.0,9.355e-05,2]
[420596543,1776295840640,-500.0,9.355e-05,2]
[420596544,1776295840649,-500.0,9.355e-05,2]
[420596545,1776295840658,-500.0,9.355e-05,2]
[420596546,1776295840668,-500.0,9.355e-05,2]
[420596547,1776295840677,-500.0,9.355e-05,2]
[420596548,1776295840686,-743.50770149,9.355e-05,2]
[420596549,1776295840696,-500.0,9.355e-05,2]
[420596550,1776295840705,-500.0,9.355e-05,2]
[420596551,1776295840715,-500.0,9.355e-05,2]
[420596552,1776295840724,-500.0,9.355e-05,2]
[420596553,1776295840734,-174.61919141,9.355e-05,2]
[420596554,1776295840743,-500.0,9.355e-05,2]
[420596555,1776295840752,-500.0,9.355e-05,2]
[420596556,1776295840762,-2002.51008952,9.355e-05,2]
[420596557,1776295840771,-220.98512515,9.355e-05,2]
[420596558,1776295840781,-428.48088418,9.355e-05,2]
[420596559,1776295840790,-235.75327194,9.355e-05,2]
[420596560,1776295840799,-244.476143,9.355e-05,2]
[420596561,1776295840808,-253.52176029,9.355e-05,2]
[420596562,1776295840817,-262.90206542,9.355e-05,2]
[420596563,1776295840827,-693.3919763,9.355e-05,2]
[420596564,1776295840836,-272.62944185,9.355e-05,2]
[420596565,1776295840846,-282.71673119,9.355e-05,2]
[420596566,1776295840855,-293.17725025,9.355e-05,2]
[420596567,1776295840864,-209.40437684,9.355e-05,2]
[420596568,1776295840874,-304.02480851,9.355e-05,2]
[420596569,1776295840883,-278.45049134,9.355e-05,2]
[420596570,1776295840892,-279.9045709,9.355e-05,2]
[420596571,1776295840901,-155.25,9.355e-05,2]
[420596572,1776295840911,-521.57565016,9.379e-05,2]
[420596573,1776295840920,-500.0,9.41e-05,2]
[420596574,1776295840930,-3886.62173809,9.41e-05,2]
[420596575,1776295840940,-151.0,9.41e-05,2]
[420596576,1776295840949,-151.0,9.416e-05,2]
[420596577,1776295840958,-151.0,9.416e-05,2]
[420596578,1776295840967,-500.0,9.465e-05,2]
[420596579,1776295840976,-151.0,9.465e-05,2]
[420596580,1776295840987,-250.0,9.489e-05,2]
[420596581,1776295840996,-250.0,9.489e-05,2]
[420596582,1776295841005,-193.0,9.489e-05,2]
[420596583,1776295841014,-4959.8029,9.49e-05,2]
[420596584,1776295841024,-11561.50000005,9.493e-05,2]
[420596585,1776295841033,-151.0,9.493e-05,2]
[420596586,1776295841042,-151.0,9.493e-05,2]
[420596587,1776295841051,-500.0,9.52e-05,2]
[420596588,1776295841061,-151.0,9.52e-05,2]
[420596589,1776295841070,-500.0,9.575e-05,2]
[420596590,1776295841079,-151.0,9.575e-05,2]
[420596591,1776295841088,-151.0,9.589e-05,2]
[420596592,1776295841098,-151.0,9.589e-05,2]
[420596593,1776295841107,-1000.0,9.59e-05,2]
[420596594,1776295841116,-2367.0,9.616e-05,2]
[420596595,1776295841126,-500.0,9.625e-05,2]
[420596596,1776295841135,-500.0,9.625e-05,2]
[420596597,1776295841144,-500.0,9.625e-05,2]
[420596598,1776295841153,-500.0,9.625e-05,2]
[420596599,1776295841163,-500.0,9.625e-05,2]
[420596600,1776295841172,-500.0,9.625e-05,2]
[420596601,1776295841181,-500.0,9.625e-05,2]
[420596602,1776295841190,-500.0,9.625e-05,2]
[420596603,1776295841199,-500.0,9.625e-05,2]
[420596604,1776295841209,-500.0,9.625e-05,2]
[420596605,1776295841218,-500.0,9.625e-05,2]
[420596606,1776295841227,-500.0,9.625e-05,2]
[420596607,1776295841236,-500.0,9.625e-05,2]
[420596608,1776295841245,-500.0,9.625e-05,2]
[420596609,1776295841255,-500.0,9.625e-05,2]
[420596610,1776295841265,-500.0,9.625e-05,2]
[420596611,1776295841275,-500.0,9.625e-05,2]
[420596612,1776295841285,-500.0,9.625e-05,2]
[420596613,1776295841295,-500.0,9.625e-05,2]
[420596614,1776295841304,-500.0,9.625e-05,2]
[420596615,1776295841314,-500.0,9.625e-05,2]
[420596616,1776295841323,-231.61268892,9.625e-05,2]
[420596617,1776295841332,-155.25,9.629e-05,2]
[420596618,1776295841341,-500.0,9.63e-05,2]
[420596619,1776295841351,-151.0,9.63e-05,2]
[420596620,1776295841360,-585.0,9.651e-05,5]
[420596621,1776295841370,-151.0,9.669e-05,2]
[420596622,1776295841380,-151.0,9.671e-05,2]
[420596623,1776295841389,-151.0,9.671e-05,2]
[420596624,1776295841399,-11984.0,9.671e-05,2]
[420596625,1776295841409,-161.0,9.673e-05,7]
[420596626,1776295841418,-1680.0,9.679e-05,2]
[420596627,1776295841427,-500.0,9.685e-05,2]
[420596628,1776295841437,-151.0,9.685e-05,2]
[420596629,1776295841446,-151.0,9.687e-05,2]
[420596630,1776295841456,-158.0,9.689e-05,7]
[420596631,1776295841465,-315012.2678737,9.69e-05,2]
[420596632,1776295841474,-153178.078811,9.69e-05,2]
[420596633,1776295841484,-12015.2580777,9.69e-05,2]
[420596634,1776295841493,-151.0,9.69e-05,2]
[420596635,1776295841503,-151.0,9.69e-05,2]
[420596636,1776295841512,-151.0,9.69e-05,2]
[420596637,1776295841522,-151.0,9.69e-05,2]
[420596638,1776295841532,-177.110884,9.69e-05,2]
[420596639,1776295841541,-151.0,9.69e-05,2]
[420596640,1776295841551,-151.0,9.69e-05,2]
[420596641,1776295841561,-500.0,9.69e-05,2]
[420596642,1776295841571,-151.0,9.69e-05,2]
[420596643,1776295841580,-151.0,9.69e-05,2]
[420596644,1776295841590,-151.0,9.69e-05,2]
[420596645,1776295841600,-158.0,9.69e-05,3]
[420596646,1776295841610,-1191.0,9.69e-05,3]
[420596647,1776295841619,-161.0,9.69e-05,3]
[420596648,1776295841629,-158.0,9.69e-05,3]
[420596649,1776295841639,-156.0,9.692e-05,7]
[420596650,1776295841649,-150.0,9.7e-05,2]
[420596651,1776295841659,-1600.0,9.705e-05,2]
[420596652,1776295841668,-500.0,9.711e-05,2]
[420596653,1776295841678,-500.0,9.711e-05,2]
[420596654,1776295841688,-500.0,9.711e-05,2]
[420596655,1776295841698,-500.0,9.711e-05,2]
[420596656,1776295841708,-150.0,9.726e-05,2]
[420596657,1776295841718,-500.0,9.74e-05,2]
[420596658,1776295841727,-151.0,9.74e-05,2]
[420596659,1776295841738,-294.24639104,9.784e-05,2]
[420596660,1776295841748,-337.0,9.787e-05,2]
[420596661,1776295841758,-420.0,9.787e-05,2]
[420596662,1776295841767,-500.0,9.795e-05,2]
[420596663,1776295841777,-151.0,9.795e-05,2]
[420596664,1776295841787,-7197.35201193,9.8e-05,2]
[420596665,1776295841796,-150.0,9.83e-05,2]
[420596666,1776295841806,-500.0,9.85e-05,2]
[420596667,1776295841816,-151.0,9.85e-05,2]
[420596668,1776295841825,-228.58,9.883e-05,2]
[420596669,1776295841835,-200.0,9.9e-05,2]
[420596670,1776295841845,-200.0,9.903e-05,2]
[420596671,1776295841855,-1481.23780761,9.903e-05,2]
[420596672,1776295841865,-217.15233878,9.903e-05,2]
[420596673,1776295841874,-156.587,9.903e-05,2]
[420596674,1776295841884,-771.01748645,9.903e-05,2]
[420596675,1776295841894,-181.08010149,9.903e-05,2]
[420596676,1776295841905,-744.70298254,9.903e-05,2]
[420596677,1776295841914,-217.15233878,9.903e-05,2]
[420596678,1776295841927,-290.26104003,9.903e-05,2]
[420596679,1776295841937,-155.27,9.903e-05,2]
[420596680,1776295841946,-500.0,9.905e-05,2]
[420596681,1776295841956,-151.0,9.905e-05,2]
[420596682,1776295841965,-255.0,9.929e-05,2]
[420596683,1776295841975,-205.0,9.989e-05,2]
[420596684,1776295841985,-205.0,9.989e-05,2]
[420596685,1776295841994,-205.0,9.989e-05,2]
[420596686,1776295842004,-205.0,9.989e-05,2]
[420596687,1776295842013,-205.0,9.989e-05,2]
[420596688,1776295842023,-205.0,9.989e-05,2]
[420596689,1776295842032,-205.0,9.989e-05,2]
[420596690,1776295842042,-205.0,9.989e-05,2]
[420596691,1776295842051,-151.0,9.997e-05,2]
[420596692,1776295842061,-155.0,9.999e-05,2]
[420596693,1776295842070,-150.0,0.0001,2]
[420596694,1776295842080,-151.0,0.0001,2]
[420596695,1776295842090,-151.0,0.0001,2]
[420596696,1776295842099,-191.64937014,0.0001,2]
[420596697,1776295842109,-273.28349257,0.0001,2]
[420596698,1776295842119,-258.64654064,0.0001,2]
[420596699,1776295842129,-283.28883373,0.0001,2]
[420596700,1776295842138,-602.86025732,0.0001,2]
[420596701,1776295842148,-1509.14837765,0.0001,2]
[420596702,1776295842158,-1427.77126864,0.0001,2]
[420596703,1776295842168,-1282.73282052,0.0001,2]
[420596704,1776295842178,-201.95343748,0.0001,2]
[420596705,1776295842188,-201.95343748,0.0001,2]
[420596706,1776295842198,-201.95343748,0.0001,2]
[420596707,1776295842208,-151.0,0.0001,2]
[420596708,1776295842218,-151.0,0.0001,2]
[420596709,1776295842227,-196.964854,0.0001,2]
[420596710,1776295842237,-610.52702833,0.0001,2]
[420596711,1776295842247,-500.0,0.0001,2]
[420596712,1776295842256,-151.0,0.0001,2]
[420596713,1776295842266,-500.0,0.0001,2]
[420596714,1776295842277,-151.0,0.0001,2]
[420596715,1776295842286,-500.0,0.0001,2]
[420596716,1776295842296,-151.0,0.0001,2]
[420596717,1776295842306,-500.0,0.0001,2]
[420596718,1776295842315,-151.0,0.0001,2]
[420596719,1776295842325,-500.0,0.0001,2]
[420596720,1776295842335,-500.0,0.0001,2]
[420596721,1776295842345,-151.0,0.0001,2]
[420596722,1776295842354,-500.0,0.0001,2]
[420596723,1776295842364,-151.0,0.0001,2]
[420596724,1776295842373,-500.0,0.0001,2]
[420596725,1776295842383,-151.0,0.0001,2]
[420596726,1776295842392,-500.0,0.0001,2]